bitfinex/quotes_ETHUSD_20250210
["timestamp","ask_amount","ask_price","bid_price","bid_amount"]
[1739145601866,0.8116,2631.2,2630.3,0.8156]
[1739145602871,0.75845219,2631.3,2630.3,0.8156]
[1739145604265,0.8116,2631.2,2630.3,0.8156]
[1739145604471,0.85911529,2631.2,2630.3,0.8156]
[1739145604667,0.85911529,2631.2,2630.3,9.6756]
[1739145604867,0.85911529,2631.2,2630.3,0.8156]
[1739145604868,0.04751983,2631.1,2630.3,0.8156]
[1739145605271,0.8116,2631.2,2630.3,0.8156]
[1739145605435,0.74996098,2631.0,2630.3,0.8156]
[1739145605655,0.04751921,2630.9,2630.3,0.8156]
[1739145606687,0.8116,2631.2,2630.3,0.8156]
[1739145606995,0.7795,2631.8,2630.5,0.7946]
[1739145607188,0.04751416,2631.7,2630.5,0.7946]
[1739145607497,0.7795,2631.6,2630.5,0.7946]
[1739145607697,0.75361413,2631.3,2630.5,0.7946]
[1739145608363,0.7795,2631.6,2630.6,0.7946]
[1739145608693,0.75378069,2631.5,2630.7,0.7946]
[1739145609097,0.04750782,2631.4,2630.7,0.7946]
[1739145610295,0.75378069,2631.5,2630.7,0.7946]
[1739145610498,0.80129428,2631.5,2630.7,0.7946]
[1739145610996,0.75378069,2631.5,2630.9,0.7946]
[1739145611356,0.75378069,2631.5,2630.9,6.0446]
[1739145611556,0.7795,2632.2,2631.1,4.51734894]
[1739145611754,0.18947278,2632.4,2631.7,3.72274894]
[1739145611755,0.77714606,2632.4,2631.7,3.72274894]
[1739145612007,0.2,2633.8,2631.7,3.72274894]
[1739145612008,0.7795,2633.1,2632.3,3.72274894]
[1739145612293,0.7795,2633.1,2631.4,0.55]
[1739145612294,0.7795,2632.7,2631.5,0.7946]
[1739145612600,0.7795,2632.5,2631.5,0.7946]
[1739145612755,0.04749965,2632.4,2631.5,0.7946]
[1739145612959,0.7795,2632.5,2631.5,0.7946]
[1739145612960,0.82699848,2632.5,2631.5,0.7946]
[1739145613174,0.82699653,2632.8,2631.8,0.7946]
[1739145613369,1.59257407,2632.8,2631.8,0.7946]
[1739145613577,0.0474913,2632.7,2632.0,0.7946]
[1739145614459,0.76557754,2632.8,2632.0,0.7946]
[1739145615074,0.04748697,2632.7,2632.0,0.7946]
[1739145615396,0.76557754,2632.8,2632.0,0.7946]
[1739145615583,0.77684163,2633.3,2632.4,0.7946]
[1739145615784,0.7795,2633.4,2632.4,0.83258468]
[1739145615987,0.04747751,2633.3,2632.4,0.7946]
[1739145616497,1.54492532,2633.4,2632.5,0.55]
[1739145616713,0.04748114,2633.3,2632.4,0.7946]
[1739145617085,1.54492532,2633.4,2632.4,0.7946]
[1739145617739,1.54492532,2633.4,2632.5,0.55]
[1739145617886,1.54492532,2633.4,2632.6,3.72274894]
[1739145618097,0.76542532,2633.4,2632.7,0.7946]
[1739145618698,0.76542532,2633.4,2632.6,3.72274894]
[1739145619010,0.7795,2632.8,2631.6,0.7946]
[1739145619213,0.04749428,2632.7,2632.1,3.72274894]
[1739145619411,0.7795,2633.3,2632.3,1.3446]
[1739145619920,0.7795,2633.3,2632.5,3.72274894]
[1739145620410,0.04747714,2633.2,2632.5,3.72274894]
[1739145621231,0.7795,2633.3,2632.6,0.55]
[1739145621402,0.7842,2633.6,2632.8,3.72274894]
[1739145624190,0.7842,2634.2,2633.1,3.72274894]
[1739145624426,0.7842,2634.2,2632.7,0.8308]
[1739145624427,0.7842,2634.2,2633.4,3.72274894]
[1739145624630,0.74411494,2634.1,2633.4,3.72274894]
[1739145625759,0.04746633,2634.0,2633.4,3.72274894]
[1739145626254,0.04746633,2634.0,2633.2,0.8308]
[1739145626453,0.7842,2633.9,2633.1,3.72274894]
[1739145626616,0.7842,2633.9,2633.0,0.8308]
[1739145627156,0.04747085,2633.8,2632.8,10.35354894]
[1739145627452,0.7842,2633.9,2633.4,4.55354894]
[1739145627749,0.75833563,2634.1,2633.4,4.55354894]
[1739145627911,0.04746325,2634.0,2633.4,4.55354894]
[1739145628949,0.04746325,2634.0,2633.2,0.55]
[1739145629113,0.7842,2633.9,2633.1,14.11]
[1739145629321,0.0474707,2633.8,2632.8,3.72274894]
[1739145629516,0.7842,2633.7,2632.8,3.72274894]
[1739145629854,0.7698947,2634.1,2632.7,14.11]
[1739145629855,0.7842,2633.5,2632.7,14.11]
[1739145630064,0.04747621,2633.4,2632.7,5.25]
[1739145630561,3.79823,2632.8,2632.7,5.25]
[1739145631664,3.79766,2633.2,2632.7,9.04836]
[1739145631838,3.79766,2633.2,2632.9,3.72274894]
[1739145632174,3.79781,2633.1,2632.9,3.72274894]
[1739145632533,3.79769,2633.2,2632.9,3.72274894]
[1739145634950,3.79794,2633.0,2632.9,14.11]
[1739145635146,3.79782,2633.1,2632.9,5.25]
[1739145635964,3.79809,2632.9,2632.1,10.3119]
[1739145636186,3.7991,2632.2,2632.1,1.4519]
[1739145636484,3.7991,2632.2,2632.0,4.50034894]
[1739145636780,3.79809,2632.9,2632.0,8.29968894]
[1739145636781,3.79876,2632.5,2632.0,8.29968894]
[1739145636980,3.79904,2632.3,2632.0,4.50034894]
[1739145637280,3.79922,2632.2,2632.0,4.50034894]
[1739145638186,3.79891,2632.4,2632.0,4.50034894]
[1739145639983,0.83008508,2632.5,2632.0,3.72274894]
[1739145640170,3.79891,2632.4,2632.0,3.72274894]
[1739145640376,3.79902,2632.3,2632.0,3.72274894]
[1739145640693,3.79891,2632.4,2632.0,3.72274894]
[1739145641485,3.79861,2632.6,2632.0,3.72274894]
[1739145641685,3.79892,2632.4,2632.0,3.72274894]
[1739145641842,3.79875,2632.5,2632.0,3.72274894]
[1739145642047,3.79875,2632.5,2632.0,7.52210894]
[1739145642488,3.79863,2632.6,2632.0,7.52210894]
[1739145642660,3.79837,2632.8,2632.3,8.29923894]
[1739145643482,4.94685908,2633.1,2632.6,7.52115894]
[1739145643684,0.76925708,2633.1,2632.9,4.50034894]
[1739145643881,3.79748,2633.4,2632.9,8.29829894]
[1739145644195,3.79748,2633.4,2633.0,3.79792]
[1739145644397,3.79723,2633.5,2633.0,3.79792]
[1739145644556,4.57978,2633.6,2633.2,7.52038894]
[1739145644557,3.79718,2633.6,2633.2,7.52038894]
[1739145644756,3.79654,2634.0,2633.5,3.72274894]
[1739145645059,7.59315,2634.0,2633.5,3.72274894]
[1739145645271,3.79673,2633.9,2633.5,3.72274894]
[1739145645490,1.54372331,2634.2,2633.3,0.55]
[1739145645491,3.79691,2633.8,2633.3,0.55]
[1739145646079,3.79658,2634.0,2633.3,0.55]
[1739145646402,4.57888,2634.2,2633.5,8.11963163]
[1739145646555,4.57888,2634.2,2633.6,4.57459]
[1739145646756,1.31515364,2634.3,2633.8,4.32254163]
[1739145647085,3.79622,2634.2,2633.8,4.32254163]
[1739145647402,0.55,2634.3,2633.8,8.11920163]
[1739145647555,3.79659,2634.0,2633.6,0.7776]
[1739145648670,3.79628,2634.2,2633.6,0.7776]
[1739145648875,3.7965,2634.0,2633.6,0.7776]
[1739145649205,0.434628,2634.1,2633.6,4.57468]
[1739145649371,4.231098,2634.1,2633.6,0.7776]
[1739145649872,3.79675,2633.9,2633.6,0.7776]
[1739145650073,3.7963,2634.2,2633.6,4.57465]
[1739145650393,3.7963,2634.2,2633.8,4.32254163]
[1739145651031,0.55,2634.3,2634.2,0.7608]
[1739145651920,0.55,2634.3,2633.9,1.3108]
[1739145652216,0.55,2634.3,2633.9,5.10743]
[1739145652923,3.79593,2634.4,2633.9,5.10743]
[1739145654112,3.79649,2634.1,2633.9,0.7608]
[1739145654616,3.7965,2634.0,2633.8,1.4519]
[1739145655322,3.79665,2633.9,2633.8,1.4519]
[1739145655684,3.79665,2633.9,2633.6,0.7608]
[1739145655685,3.79684,2633.8,2633.6,0.7608]
[1739145656586,3.79693,2633.7,2633.6,0.7608]
[1739145656781,3.7972,2633.6,2633.3,0.7608]
[1739145656995,3.79719,2633.6,2633.3,0.7608]
[1739145657199,3.79737,2633.4,2633.2,8.86]
[1739145657411,3.79794,2633.0,2632.9,0.7608]
[1739145657595,3.79838,2632.7,2632.3,4.32254163]
[1739145657793,3.79881,2632.4,2632.2,8.86]
[1739145658023,3.84599713,2632.7,2632.0,9.79754163]
[1739145658024,3.79865,2632.6,2632.1,3.79923]
[1739145658222,3.79818,2632.9,2632.3,4.32254163]
[1739145658426,3.79834,2632.8,2632.3,4.32254163]
[1739145658626,3.79818,2632.9,2632.3,4.32254163]
[1739145658795,3.79818,2632.9,2632.3,8.12135163]
[1739145659002,7.59579,2633.1,2632.6,4.32254163]
[1739145659196,3.79831,2632.8,2632.5,0.7608]
[1739145659784,3.79783,2633.1,2632.5,6.55945]
[1739145659980,7.59575,2633.1,2632.6,4.32254163]
[1739145660201,3.79797,2633.0,2632.6,4.32254163]
[1739145660421,4.5649,2633.3,2632.7,4.34837]
[1739145660633,3.79805,2633.0,2632.7,0.55]
[1739145660780,3.79805,2633.0,2632.3,13.18254163]
[1739145660781,3.79835,2632.8,2632.3,13.18254163]
[1739145660990,3.79852,2632.7,2632.3,13.18254163]
[1739145661188,3.79876,2632.5,2632.3,13.18254163]
[1739145661526,3.79881,2632.4,2632.3,8.86]
[1739145662027,3.79925,2632.1,2631.9,0.7608]
[1739145662186,3.79961,2631.9,2631.7,6.32254163]
[1739145662587,3.79863,2632.6,2631.8,0.55]
[1739145662822,3.79881,2632.4,2632.3,4.32254163]
[1739145663025,3.79863,2632.6,2632.3,4.32254163]
[1739145663327,3.79869,2632.5,2632.3,4.32254163]
[1739145663506,3.79854,2632.6,2632.3,4.32254163]
[1739145663917,3.79847,2632.7,2632.3,4.32254163]
[1739145664125,3.79688,2633.8,2633.2,4.55837]
[1739145664326,0.7673,2634.2,2633.6,3.797]
[1739145664632,3.79607,2634.3,2633.8,0.7608]
[1739145664786,4.56315,2634.5,2633.9,3.79654]
[1739145664992,0.456315,2634.4,2634.0,4.32254163]
[1739145665209,0.456315,2634.4,2634.0,8.11896163]
[1739145665410,3.79566,2634.6,2634.0,8.11896163]
[1739145665797,4.56261,2634.9,2634.3,8.11851163]
[1739145666133,3.79553,2634.7,2634.3,0.7608]
[1739145666422,3.79587,2634.5,2634.0,13.18254163]
[1739145666621,3.79587,2634.5,2634.0,13.93534163]
[1739145667034,3.79587,2634.5,2634.0,17.73184163]
[1739145667203,3.79544,2634.8,2634.2,3.79619]
[1739145668233,3.79553,2634.7,2634.1,0.55]
[1739145668401,3.7958,2634.5,2634.1,0.55]
[1739145668607,3.79553,2634.7,2634.1,0.55]
[1739145668808,3.79565,2634.6,2634.1,0.55]
[1739145669508,3.79579,2634.5,2634.0,19.73174163]
[1739145669927,3.79579,2634.5,2634.0,13.93534163]
[1739145670134,7.59168,2634.5,2634.0,13.93534163]
[1739145670328,3.79579,2634.5,2634.0,13.93534163]
[1739145670529,3.79579,2634.5,2634.0,5.07534163]
[1739145670733,3.79609,2634.3,2634.0,5.07534163]
[1739145670938,3.79609,2634.3,2633.7,5.07534163]
[1739145671229,3.79555,2634.7,2633.7,5.07534163]
[1739145671422,3.79625,2634.2,2633.7,5.07534163]
[1739145671823,0.82465499,2634.6,2634.0,4.32254163]
[1739145671824,3.79586,2634.5,2634.0,4.32254163]
[1739145672129,4.57289,2634.6,2634.1,3.79633]
[1739145672130,3.79569,2634.6,2634.1,3.79633]
[1739145672311,4.59723,2634.9,2634.3,4.32254163]
[1739145672514,3.7955,2634.7,2634.3,4.32254163]
[1739145672708,3.79523,2634.9,2634.3,4.32254163]
[1739145672912,3.79535,2634.8,2634.3,8.11853163]
[1739145673232,0.408,2636.1,2634.3,8.11853163]
[1739145673233,3.79457,2635.4,2634.6,8.11805163]
[1739145673419,3.79435,2635.5,2635.0,4.32254163]
[1739145673595,3.79474,2635.3,2634.8,8.86]
[1739145673795,3.79474,2635.3,2634.8,12.65535]
[1739145674001,3.79479,2635.2,2634.8,8.86]
[1739145674197,4.59631,2635.6,2635.0,5.10324163]
[1739145674404,3.79442,2635.5,2635.0,8.89822163]
[1739145674829,3.79436,2635.5,2635.0,8.89822163]
[1739145675031,3.7948,2635.2,2635.0,0.7807]
[1739145675234,3.79456,2635.4,2635.0,0.7807]
[1739145675458,4.59593,2635.8,2634.6,8.86]
[1739145675459,3.79536,2634.8,2634.6,8.86]
[1739145675616,3.79557,2634.7,2634.4,5.10324163]
[1739145676238,3.79578,2634.5,2634.4,4.32254163]
[1739145676438,3.79529,2634.9,2634.4,4.32254163]
[1739145676641,3.79473,2635.3,2634.7,8.11795163]
[1739145676805,3.79442,2635.5,2635.0,4.32254163]
[1739145677007,3.79409,2635.7,2635.1,0.7807]
[1739145677207,3.79434,2635.6,2635.1,0.7807]
[1739145677408,0.802,2636.2,2635.3,4.32254163]
[1739145677727,3.79371,2636.0,2635.7,0.7807]
[1739145677903,0.802,2636.5,2635.7,0.7807]
[1739145678103,0.802,2636.8,2635.9,8.11628163]
[1739145678407,0.802,2636.8,2635.9,4.32254163]
[1739145678408,7.58687,2636.2,2635.9,4.32254163]
[1739145678607,3.79349,2636.1,2635.9,4.32254163]
[1739145678836,3.79377,2635.9,2635.7,0.7807]
[1739145679012,3.79391,2635.8,2635.6,13.18254163]
[1739145679216,3.79348,2636.1,2635.6,13.18254163]
[1739145679413,4.253028,2636.1,2635.6,13.18254163]
[1739145679620,7.58541,2636.7,2636.0,0.7807]
[1739145679818,3.79268,2636.7,2636.1,3.79339]
[1739145680008,3.79268,2636.7,2636.0,0.7807]
[1739145680009,3.79277,2636.6,2636.2,4.32254163]
[1739145680208,3.79253,2636.8,2636.2,4.32254163]
[1739145680409,0.04741335,2637.0,2636.2,4.32254163]
[1739145680607,3.79279,2636.6,2636.0,0.7807]
[1739145680823,3.79279,2636.6,2636.2,4.32254163]
[1739145681751,0.802,2637.1,2636.3,0.8307]
[1739145681961,3.79245,2636.9,2636.5,4.32254163]
[1739145682155,3.7925,2636.8,2636.5,4.32254163]
[1739145682354,3.79262,2636.7,2636.3,0.8307]
[1739145682563,3.79278,2636.6,2636.3,0.8307]
[1739145682716,3.79262,2636.7,2636.3,0.8307]
[1739145683171,0.79938502,2637.4,2636.3,0.8307]
[1739145683172,3.79177,2637.3,2636.8,3.79244]
[1739145683325,0.05184783,2637.4,2637.1,8.11445163]
[1739145683522,0.05184783,2637.4,2637.1,4.32254163]
[1739145683724,0.05184783,2637.4,2636.9,4.623]
[1739145683725,3.79183,2637.3,2636.9,0.8307]
[1739145684273,3.79227,2637.0,2636.6,9.6907]
[1739145684425,3.7919,2637.2,2636.8,4.32254163]
[1739145684621,0.05184783,2637.4,2636.8,4.32254163]
[1739145684866,0.05184783,2637.4,2637.2,0.8307]
[1739145685178,0.05184783,2637.4,2637.2,4.62259]
[1739145685374,0.05184783,2637.4,2637.3,3.79175]
[1739145685530,0.05184783,2637.4,2637.3,4.34175]
[1739145686528,0.05184783,2637.4,2637.3,5.17245]
[1739145687732,0.05184783,2637.4,2637.3,8.17245]
[1739145687922,0.05184783,2637.4,2637.3,5.17245]
[1739145688736,0.05184783,2637.4,2637.3,18.48435]
[1739145689650,7.83e-06,2637.4,2637.3,23.00689163]
[1739145689852,0.55,2638.1,2638.0,5.79075]
[1739145690052,0.55,2638.1,2638.0,20.35399163]
[1739145690937,0.55,2638.1,2638.0,16.56324163]
[1739145691247,0.55,2638.1,2638.0,20.35399163]
[1739145691649,0.55,2638.1,2638.0,13.73254163]
[1739145691870,0.55,2638.1,2637.7,7.08044163]
[1739145692192,0.55,2638.1,2637.4,6.32254163]
[1739145692488,0.55,2638.1,2637.7,4.32254163]
[1739145692786,3.79134,2637.6,2637.4,6.32254163]
[1739145693296,3.79161,2637.4,2637.0,0.7579]
[1739145693649,3.79231,2637.0,2636.8,6.32254163]
[1739145693871,3.79206,2637.1,2636.5,4.32254163]
[1739145694182,0.83946757,2637.3,2636.5,4.32254163]
[1739145694183,0.04105811,2636.9,2636.5,4.32254163]
[1739145694356,3.7922,2637.0,2636.6,4.32254163]
[1739145694686,0.04104476,2636.9,2636.5,2.0]
[1739145694868,0.04104476,2636.9,2636.8,10.11501163]
[1739145695180,0.7507,2637.9,2637.1,0.55]
[1739145695381,7.58166,2638.0,2637.4,4.32254163]
[1739145695382,3.79078,2638.0,2637.4,4.32254163]
[1739145695588,0.04077771,2637.8,2637.4,4.32254163]
[1739145695902,0.55,2638.1,2637.7,4.32254163]
[1739145696251,0.5,2638.1,2638.0,4.32254163]
[1739145696663,0.5,2638.1,2637.7,10.86]
[1739145696664,3.79084,2638.0,2637.7,13.18254163]
[1739145696859,0.5,2638.1,2637.7,8.86]
[1739145697063,3.791,2637.9,2637.4,4.32254163]
[1739145697448,0.5,2638.1,2637.8,0.55]
[1739145697888,0.5,2638.1,2637.7,4.32254163]
[1739145698249,0.5,2638.1,2637.8,0.55]
[1739145698746,0.5,2638.1,2638.0,5.12134163]
[1739145698952,0.5,2638.1,2638.0,5.67134163]
[1739145699273,0.5,2638.1,2638.0,21.32209163]
[1739145700149,0.5,2638.1,2638.0,14.53134163]
[1739145700377,4.2406,2638.1,2638.0,13.73254163]
[1739145700581,4.24062,2638.1,2637.7,7.12134163]
[1739145700784,4.24062,2638.1,2637.7,6.32254163]
[1739145700987,0.45,2638.1,2637.8,0.55]
[1739145701150,0.45,2638.1,2637.7,6.32254163]
[1739145701354,0.45,2638.1,2637.6,9.168]
[1739145701355,3.79085,2638.0,2637.6,9.168]
[1739145701704,3.79103,2637.8,2637.6,8.86]
[1739145702101,3.79085,2638.0,2637.6,8.86]
[1739145702247,0.04077771,2637.7,2637.6,9.41]
[1739145702454,4.2407,2638.1,2637.6,9.41]
[1739145702682,0.04077771,2637.7,2637.6,9.41]
[1739145702890,3.79093,2637.9,2637.6,9.41]
[1739145703202,3.79093,2637.9,2637.2,2.0]
[1739145703203,3.79144,2637.6,2637.2,2.0]
[1739145703425,3.79187,2637.3,2636.8,7.12134163]
[1739145703863,3.79187,2637.3,2636.9,0.55]
[1739145704064,0.0409981,2637.2,2636.9,0.55]
[1739145704311,3.79154,2637.5,2636.9,0.55]
[1739145704478,3.79166,2637.4,2636.9,0.55]
[1739145704674,3.8326581,2637.4,2636.9,0.55]
[1739145704893,3.79233,2636.9,2636.8,2.0]
[1739145705064,3.79276,2636.6,2636.5,8.86]
[1739145705459,0.7739,2637.0,2636.2,4.32254163]
[1739145705696,3.79276,2636.6,2636.2,4.32254163]
[1739145705894,4.56613,2637.0,2636.3,2.55]
[1739145706097,0.42880449,2638.0,2636.5,4.32254163]
[1739145706298,0.0409981,2636.9,2636.8,8.11492163]
[1739145706608,3.79144,2637.6,2636.9,6.34222]
[1739145706775,3.79144,2637.6,2637.1,4.32254163]
[1739145707110,0.45,2638.1,2637.2,2.55]
[1739145707313,0.45,2638.1,2637.7,4.32254163]
[1739145707809,0.4,2638.1,2637.7,4.32254163]
[1739145708176,0.4,2638.1,2638.0,4.32254163]
[1739145708586,0.4,2638.1,2638.0,10.66329163]
[1739145708789,0.4,2638.1,2638.0,6.87254163]
[1739145709005,0.4,2638.1,2637.9,8.86]
[1739145709294,3.79075,2638.0,2637.9,8.86]
[1739145709459,0.4,2638.1,2637.9,8.86]
[1739145710459,0.4,2638.1,2638.0,11.41]
[1739145710664,0.4,2638.1,2638.0,18.99955]
[1739145711384,0.35,2638.1,2638.0,15.99955]
[1739145712702,0.35,2638.1,2638.0,18.99955]
[1739145713087,0.005,2638.4,2638.3,6.34031]
[1739145713294,0.005,2638.4,2638.3,19.9927998]
[1739145714193,0.005,2638.4,2638.3,23.8247998]
[1739145714396,1e-05,2639.3,2639.2,12.9635098]
[1739145714607,1e-05,2639.3,2639.2,21.8235098]
[1739145714772,1e-05,2639.3,2639.2,56.8235098]
[1739145715903,1e-05,2639.3,2639.2,58.8235098]
[1739145716307,0.1475722,2640.1,2640.0,6.61987]
[1739145716481,0.1475722,2640.1,2640.0,9.61987]
[1739145716887,0.1475722,2640.1,2640.0,10.11987]
[1739145717089,0.1475722,2640.1,2640.0,7.11987]
[1739145717311,0.1475722,2640.1,2640.0,2.0]
[1739145717524,0.1475722,2640.1,2639.8,7.57607]
[1739145717674,0.1475722,2640.1,2639.9,3.78798]
[1739145717879,0.1475722,2640.1,2639.8,3.78802]
[1739145718101,0.2,2642.8,2640.9,0.1]
[1739145718315,3.78433,2642.5,2641.3,4.8924898]
[1739145718524,0.19489361,2642.7,2641.5,0.1]
[1739145718830,0.91546302,2642.7,2641.5,0.1]
[1739145718998,3.78587,2641.4,2641.1,0.1]
[1739145719198,3.78673,2640.8,2640.7,0.1]
[1739145719427,3.78658,2641.0,2640.7,0.1]
[1739145719630,3.0,2641.3,2640.7,0.1]
[1739145719816,4.55568686,2642.2,2641.3,0.1]
[1739145720021,3.7856,2641.6,2641.3,0.1]
[1739145720329,3.78606,2641.3,2641.1,0.1]
[1739145720694,7.57221,2641.3,2641.1,0.1]
[1739145721035,3.78615,2641.2,2640.9,0.1]
[1739145721221,0.7834,2641.0,2640.5,0.1]
[1739145721611,3.78698,2640.7,2640.5,0.1]
[1739145721928,3.78698,2640.7,2640.3,0.1]
[1739145722130,0.7834,2641.0,2640.3,0.1]
[1739145722131,0.04174724,2640.6,2640.3,0.1]
[1739145722302,0.04174724,2640.6,2640.5,0.1]
[1739145722496,4.56994,2641.0,2640.5,0.1]
[1739145722693,0.04174724,2640.6,2640.5,0.1]
[1739145722933,3.78596,2641.4,2640.9,0.1]
[1739145723104,3.78596,2641.4,2640.5,6.7924898]
[1739145723105,3.78638,2641.1,2640.7,0.1]
[1739145723311,3.0,2641.1,2640.5,0.1]
[1739145723514,3.7867,2640.9,2640.3,0.1]
[1739145723828,3.78726,2640.5,2640.3,0.1]
[1739145724000,3.7873,2640.4,2640.3,0.1]
[1739145724331,3.78712,2640.6,2640.3,0.1]
[1739145724514,3.78721,2640.5,2640.3,0.1]
[1739145724826,3.78701,2640.6,2640.1,0.1]
[1739145725029,3.78759,2640.2,2640.1,0.1]
[1739145725702,3.78744,2640.3,2640.1,0.1]
[1739145726531,3.78759,2640.2,2640.1,0.1]
[1739145726737,3.78787,2640.0,2639.9,0.1]
[1739145727153,3.78787,2640.0,2639.3,10.5812798]
[1739145727154,3.78816,2639.8,2639.7,0.1]
[1739145727299,3.78845,2639.6,2639.5,0.1]
[1739145727497,3.78817,2639.8,2639.5,0.1]
[1739145727732,3.78842,2639.7,2639.5,0.1]
[1739145727920,3.78817,2639.8,2639.5,0.1]
[1739145728302,3.78802,2639.9,2639.7,0.1]
[1739145728497,0.457041,2640.5,2640.3,0.1]
[1739145728498,3.78738,2640.4,2640.3,0.1]
[1739145728698,3.78745,2640.3,2639.9,0.1]
[1739145729009,3.78774,2640.1,2640.0,0.1]
[1739145729211,3.78813,2639.9,2639.7,0.1]
[1739145729413,3.78816,2639.8,2639.7,0.1]
[1739145730535,3.78873,2639.4,2639.3,0.1]
[1739145730832,7.57662,2639.7,2639.1,0.752]
[1739145730833,3.7886,2639.5,2639.1,0.1]
[1739145731135,3.78902,2639.2,2639.1,0.1]
[1739145731853,3.78873,2639.4,2639.3,0.1]
[1739145732301,4.56992,2639.9,2639.7,0.1]
[1739145732498,3.78776,2640.1,2639.9,0.1]
[1739145732839,3.7876,2640.2,2640.1,0.1]
[1739145733134,3.78787,2640.0,2639.9,0.1]
[1739145733300,3.78807,2639.9,2639.8,0.1]
[1739145733498,3.7883,2639.7,2639.6,0.1]
[1739145733804,3.78865,2639.5,2639.4,0.1]
[1739145734011,3.78846,2639.6,2639.4,0.1]
[1739145734217,3.78859,2639.5,2639.4,0.1]
[1739145734738,3.78846,2639.6,2638.5,12.64995]
[1739145734739,3.78888,2639.3,2639.2,0.1]
[1739145734940,3.78917,2639.1,2639.0,0.1]
[1739145735439,3.78881,2639.4,2639.2,0.1]
[1739145735649,3.78888,2639.3,2639.2,0.1]
[1739145736361,3.78917,2639.1,2639.0,0.1]
[1739145736642,3.7896,2638.8,2638.7,0.1]
[1739145736820,3.78988,2638.6,2638.5,0.1]
[1739145737019,3.79017,2638.4,2638.3,0.1]
[1739145737230,3.7907,2638.1,2638.0,0.1]
[1739145737561,3.79017,2638.4,2638.3,0.1]
[1739145737905,3.83054896,2638.4,2638.3,0.1]
[1739145738509,0.04037896,2638.4,2638.3,0.1]
[1739145738706,3.79017,2638.4,2638.3,0.1]
[1739145738960,3.83017485,2638.4,2638.3,0.1]
[1739145739137,4.61197485,2638.4,2638.3,0.1]
[1739145739642,3.79046,2638.2,2638.1,0.1]
[1739145740013,3.82936307,2638.2,2638.1,0.1]
[1739145741868,0.03890307,2638.2,2638.1,0.1]
[1739145742076,3.79006,2638.5,2638.1,0.1]
[1739145742249,3.79031,2638.3,2638.2,0.1]
[1739145742613,3.7899,2638.6,2638.2,0.1]
[1739145742813,3.78989,2638.6,2638.5,0.1]
[1739145743015,3.78975,2638.7,2638.3,0.1]
[1739145743242,3.7906,2638.1,2638.0,0.1]
[1739145743448,3.79047,2638.2,2637.8,0.1]
[1739145743647,3.79089,2637.9,2637.8,0.1]
[1739145744355,3.79089,2637.9,2637.6,0.1]
[1739145744656,3.79089,2637.9,2637.3,2.0]
[1739145744657,3.79148,2637.5,2637.3,0.1]
[1739145744959,3.79154,2637.5,2637.3,0.1]
[1739145745156,3.79161,2637.4,2637.3,0.1]
[1739145745453,3.79148,2637.5,2637.3,0.1]
[1739145745764,3.79144,2637.6,2637.5,0.1]
[1739145746266,3.79132,2637.6,2637.5,0.1]
[1739145746549,3.79078,2638.0,2637.5,0.1]
[1739145746550,3.79089,2637.9,2637.5,0.1]
[1739145746752,0.7904,2638.1,2637.8,0.1]
[1739145746911,3.79098,2637.9,2637.8,0.1]
[1739145747459,3.79098,2637.9,2637.1,0.7537]
[1739145747460,3.7904,2638.1,2637.6,0.1]
[1739145747621,3.79118,2637.7,2637.6,0.1]
[1739145748040,3.79118,2637.7,2637.4,0.1]
[1739145748041,3.79146,2637.5,2637.4,0.1]
[1739145748448,3.79134,2637.6,2637.4,0.1]
[1739145748648,3.79072,2638.1,2638.0,0.1]
[1739145748954,3.79089,2637.9,2637.8,0.1]
[1739145749330,3.7904,2638.4,2637.8,0.1]
[1739145749331,3.79076,2638.0,2637.8,0.1]
[1739145749650,3.79024,2638.4,2638.3,0.1]
[1739145750920,3.82677828,2638.4,2638.3,0.1]
[1739145751719,3.82677828,2638.4,2638.3,3.89031]
[1739145751720,0.03653828,2638.4,2638.3,3.89031]
[1739145752019,3.7896,2638.8,2638.5,0.1]
[1739145752257,3.78988,2638.6,2638.2,0.1]
[1739145752443,3.79031,2638.3,2638.2,0.1]
[1739145752756,3.79075,2638.0,2637.9,0.1]
[1739145753151,3.82778995,2638.0,2637.9,0.1]
[1739145753325,0.03703995,2638.0,2637.9,0.1]
[1739145753721,0.03703995,2638.0,2637.7,0.1]
[1739145753923,0.03703995,2638.0,2637.4,2.7537]
[1739145753924,3.79146,2637.5,2637.4,0.1]
[1739145754229,3.79175,2637.3,2637.2,0.1]
[1739145754532,3.8283418,2637.3,2637.2,0.1]
[1739145754950,4.58231,2637.2,2636.8,0.1]
[1739145755227,7.58544,2636.7,2636.6,0.1]
[1739145755430,3.79276,2636.6,2636.5,0.1]
[1739145755759,3.7929,2636.5,2636.4,0.1]
[1739145756142,3.79313,2636.4,2636.3,0.1]
[1739145756334,3.7929,2636.5,2635.8,8.86]
[1739145756335,3.79352,2636.1,2636.0,0.1]
[1739145757065,0.03594259,2636.1,2636.0,0.1]
[1739145757371,3.79335,2636.2,2636.0,0.1]
[1739145757656,0.03594259,2636.1,2636.0,0.1]
[1739145757861,3.79265,2636.7,2636.0,0.1]
[1739145758065,0.03554747,2636.1,2635.8,0.8537]
[1739145758371,3.7936,2636.1,2635.7,0.1]
[1739145758527,3.79319,2636.3,2636.2,0.1]
[1739145758857,3.79348,2636.1,2636.0,0.1]
[1739145759079,0.04742108,2636.1,2635.6,0.1]
[1739145759275,3.79405,2635.7,2635.6,0.1]